fUST/lending_fUST_20240811
["ID","MTS","AMOUNT","RATE_DAILY","PERIOD"]
[334622793,1723356656888,-569.83076,0.0002131,2]
[334622794,1723356656898,-3000.0,0.0002132,2]
[334622795,1723356656911,-3000.0,0.0002133,2]
[334622796,1723356656921,-3000.0,0.0002134,2]
[334622797,1723356656930,-3000.0,0.0002135,2]
[334622798,1723356656940,-170.244031,0.0002135,2]
[334622799,1723356656950,-170.244024,0.0002135,2]
[334622800,1723356656960,-3000.0,0.0002136,2]
[334622801,1723356656969,-500.0,0.00021369,3]
[334622802,1723356656979,-500.0,0.00021369,3]
[334622803,1723356656988,-500.0,0.00021369,3]
[334622804,1723356656998,-500.0,0.00021369,3]
[334622805,1723356657007,-500.0,0.00021369,2]
[334622806,1723356657015,-500.0,0.00021369,3]
[334622807,1723356657025,-410.76306031,0.00021369,3]
[334622808,1723356657035,-500.0,0.00021369,3]
[334622809,1723356657045,-500.0,0.00021369,3]
[334622810,1723356657054,-500.0,0.00021369,3]
[334622811,1723356657063,-500.0,0.00021369,3]
[334622812,1723356657073,-500.0,0.00021369,3]
[334622813,1723356657082,-500.0,0.00021369,3]
[334622814,1723356657091,-500.0,0.00021369,3]
[334622815,1723356657101,-500.0,0.00021369,3]
[334622816,1723356657110,-500.0,0.00021369,3]
[334622817,1723356657119,-500.0,0.00021369,3]
[334622818,1723356657128,-500.0,0.00021369,3]
[334622819,1723356657138,-500.0,0.00021369,3]
[334622820,1723356657147,-455.32477145,0.00021369,3]
[334622821,1723356657156,-517.65,0.00021369,3]
[334622822,1723356657166,-500.0,0.00021369,3]
[334622823,1723356657175,-500.0,0.00021369,3]
[334622824,1723356657184,-500.0,0.00021369,3]
[334622825,1723356657194,-500.0,0.00021369,3]
[334622826,1723356657203,-509.53993004,0.00021369,3]
[334622827,1723356657212,-500.0,0.00021369,3]
[334622828,1723356657221,-500.0,0.00021369,3]
[334622829,1723356657230,-500.0,0.00021369,3]
[334622830,1723356657239,-500.0,0.00021369,3]
[334622831,1723356657249,-500.0,0.00021369,3]
[334622832,1723356657258,-500.0,0.00021369,3]
[334622833,1723356657267,-522.40187201,0.00021369,3]
[334622834,1723356657276,-500.0,0.00021369,3]
[334622835,1723356657285,-500.0,0.00021369,3]
[334622836,1723356657295,-500.0,0.00021369,3]
[334622837,1723356657304,-500.0,0.00021369,3]
[334622838,1723356657313,-582.18,0.00021369,3]
[334622839,1723356657322,-581.22,0.00021369,3]
[334622840,1723356657331,-500.0,0.00021369,3]
[334622841,1723356657341,-944.68,0.00021369,3]
[334622842,1723356657350,-729.05,0.00021369,3]
[334622843,1723356657360,-500.0,0.00021369,3]
[334622844,1723356657369,-500.0,0.00021369,3]
[334622845,1723356657378,-500.0,0.00021369,3]
[334622846,1723356657387,-500.0,0.00021369,3]
[334622847,1723356657398,-966.54,0.00021369,3]
[334622848,1723356657407,-500.0,0.00021369,3]
[334622849,1723356657417,-500.0,0.00021369,3]
[334622850,1723356657427,-499.99950957,0.00021369,3]
[334622851,1723356657438,-1002.09,0.00021369,3]
[334622852,1723356657447,-500.0,0.00021369,3]
[334622853,1723356657457,-500.0,0.00021369,3]
[334622854,1723356657466,-500.0,0.00021369,3]
[334622855,1723356657475,-500.0,0.00021369,3]
[334622856,1723356657485,-276.601182,0.00021369,2]
[334622857,1723356657494,-276.601182,0.00021369,2]
[334622858,1723356657504,-276.601182,0.00021369,2]
[334622859,1723356657513,-276.601179,0.00021369,2]
[334622860,1723356657523,-500.0,0.00021369,3]
[334622861,1723356657532,-780.95,0.00021369,3]
[334622862,1723356657541,-500.0,0.00021369,3]
[334622863,1723356657551,-500.0,0.00021369,3]
[334622864,1723356657560,-500.0,0.00021369,3]
[334622865,1723356657570,-500.0,0.00021369,3]
[334622866,1723356657579,-500.0,0.00021369,3]
[334622867,1723356657590,-500.0,0.00021369,3]
[334622868,1723356657600,-917.55,0.00021369,3]
[334622869,1723356657609,-500.0,0.00021369,3]
[334622870,1723356657618,-500.0,0.00021369,3]
[334622871,1723356657627,-583.38,0.00021369,3]
[334622872,1723356657636,-980.25,0.00021369,3]
[334622873,1723356657645,-500.0,0.00021369,3]
[334622874,1723356657655,-500.0,0.00021369,3]
[334622875,1723356657664,-500.0,0.00021369,3]
[334622876,1723356657673,-500.0,0.00021369,3]
[334622877,1723356657682,-891.13,0.00021369,3]
[334622878,1723356657692,-500.0,0.00021369,3]
[334622879,1723356657701,-170.46195165,0.00021369,3]
[334622880,1723356657711,-500.0,0.00021369,3]
[334622881,1723356657721,-500.0,0.00021369,3]
[334622882,1723356657730,-1127.0,0.00021369,3]
[334622883,1723356657740,-500.0,0.00021369,3]
[334622884,1723356657749,-570.894169,0.00021369,2]
[334622885,1723356657758,-570.894169,0.00021369,2]
[334622886,1723356657768,-500.0,0.00021369,3]
[334622887,1723356657777,-570.894169,0.00021369,2]
[334622888,1723356657786,-570.894169,0.00021369,2]
[334622889,1723356657795,-500.0,0.00021369,3]
[334622890,1723356657806,-500.0,0.00021369,3]
[334622891,1723356657816,-500.0,0.00021369,3]
[334622892,1723356657826,-827.5,0.00021369,3]
[334622893,1723356657838,-863.73,0.00021369,3]
[334622894,1723356657847,-500.0,0.00021369,3]
[334622895,1723356657857,-820.01,0.00021369,3]
[334622896,1723356657866,-1845.89,0.00021369,3]
[334622897,1723356657876,-500.0,0.00021369,3]
[334622898,1723356657885,-500.0,0.00021369,3]
[334622899,1723356657895,-757.13,0.00021369,3]
[334622900,1723356657907,-500.0,0.00021369,3]
[334622901,1723356657917,-664.29,0.00021369,3]
[334622902,1723356657926,-778.64,0.00021369,3]
[334622903,1723356657936,-593.91,0.00021369,3]
[334622904,1723356657946,-500.0,0.00021369,3]
[334622905,1723356657956,-500.0,0.00021369,3]
[334622906,1723356657971,-500.0,0.00021369,3]
[334622907,1723356657983,-1310.14,0.00021369,3]
[334622908,1723356657994,-500.0,0.00021369,3]
[334622909,1723356658003,-788.05,0.00021369,3]
[334622910,1723356658015,-500.0,0.00021369,3]
[334622911,1723356658026,-500.0,0.00021369,3]
[334622912,1723356658037,-500.0,0.00021369,3]
[334622913,1723356658048,-612.66,0.00021369,3]
[334622914,1723356658059,-1635.37,0.00021369,3]
[334622915,1723356658070,-500.0,0.00021369,3]
[334622916,1723356658080,-1398.62,0.00021369,3]
[334622917,1723356658091,-500.0,0.00021369,3]
[334622918,1723356658100,-500.0,0.00021369,3]
[334622919,1723356658111,-500.0,0.00021369,3]
[334622920,1723356658121,-500.0,0.00021369,3]
[334622921,1723356658130,-500.0,0.00021369,3]
[334622922,1723356658139,-500.0,0.00021369,3]
[334622923,1723356658149,-500.0,0.00021369,3]
[334622924,1723356658160,-603.81,0.00021369,3]
[334622925,1723356658169,-500.0,0.00021369,3]
[334622926,1723356658179,-593.46,0.00021369,3]
[334622927,1723356658189,-500.0,0.00021369,3]
[334622928,1723356658199,-500.0,0.00021369,3]
[334622929,1723356658209,-1248.66,0.00021369,3]
[334622930,1723356658218,-558.9,0.00021369,3]
[334622931,1723356658227,-500.0,0.00021369,3]
[334622932,1723356658237,-619.36,0.00021369,3]
[334622933,1723356658247,-584.43,0.00021369,2]
[334622934,1723356658256,-500.0,0.00021369,3]
[334622935,1723356658266,-506.18,0.00021369,3]
[334622936,1723356658275,-777.28,0.00021369,3]
[334622937,1723356658284,-656.33,0.00021369,3]
[334622938,1723356658293,-500.0,0.00021369,3]
[334622939,1723356658303,-713.51,0.00021369,3]
[334622940,1723356658312,-500.0,0.00021369,3]
[334622941,1723356658321,-1413.55,0.00021369,3]
[334622942,1723356658330,-500.0,0.00021369,3]
[334622943,1723356658341,-500.0,0.00021369,3]
[334622944,1723356658350,-500.0,0.00021369,3]
[334622945,1723356658359,-758.03,0.00021369,3]
[334622946,1723356658369,-500.0,0.00021369,3]
[334622947,1723356658379,-469.04280131,0.00021369,3]
[334622948,1723356658388,-500.0,0.00021369,3]
[334622949,1723356658397,-701.39,0.00021369,3]
[334622950,1723356658407,-500.0,0.00021369,3]
[334622951,1723356658416,-1140.13,0.00021369,3]
[334622952,1723356658426,-579.65,0.00021369,3]
[334622953,1723356658435,-500.0,0.00021369,3]
[334622954,1723356658444,-500.0,0.00021369,3]
[334622955,1723356658454,-500.0,0.00021369,3]
[334622956,1723356658464,-500.0,0.00021369,3]
[334622957,1723356658477,-500.0,0.00021369,3]
[334622958,1723356658489,-500.0,0.00021369,3]
[334622959,1723356658499,-500.0,0.00021369,3]
[334622960,1723356658509,-1130.52,0.00021369,3]
[334622961,1723356658520,-500.0,0.00021369,3]
[334622962,1723356658532,-690.19,0.00021369,3]
[334622963,1723356658542,-500.0,0.00021369,3]
[334622964,1723356658552,-500.0,0.00021369,3]
[334622965,1723356658562,-500.0,0.00021369,3]
[334622966,1723356658574,-341.80828,0.00021369,2]
[334622967,1723356658585,-585.87,0.00021369,3]
[334622968,1723356658594,-500.0,0.00021369,3]
[334622969,1723356658605,-341.80827624,0.00021369,2]
[334622970,1723356658614,-500.0,0.00021369,3]
[334622971,1723356658624,-885.98,0.00021369,3]
[334622972,1723356658634,-449.44145098,0.00021369,3]
[334622973,1723356658645,-500.0,0.00021369,3]
[334622974,1723356658655,-500.0,0.00021369,3]
[334622975,1723356658666,-500.0,0.00021369,3]
[334622976,1723356658677,-151.0,0.00021369,2]
[334622977,1723356658688,-500.0,0.00021369,3]
[334622978,1723356658699,-500.0,0.00021369,3]
[334622979,1723356658708,-1313.92,0.00021369,3]
[334622980,1723356658719,-1724.26,0.00021369,3]
[334622981,1723356658730,-1210.92,0.00021369,3]
[334622982,1723356658739,-500.0,0.00021369,3]
[334622983,1723356658749,-268.60066252,0.00021369,3]
[334622984,1723356658758,-724.56,0.00021369,3]
[334622985,1723356658768,-151.0,0.00021369,2]
[334622986,1723356658778,-1250.81,0.00021369,3]
[334622987,1723356658788,-151.0,0.00021369,2]
[334622988,1723356658797,-500.0,0.00021369,3]
[334622989,1723356658810,-500.0,0.00021369,3]
[334622990,1723356658819,-500.0,0.00021369,3]
[334622991,1723356658828,-500.0,0.00021369,3]
[334622992,1723356658839,-500.0,0.00021369,3]
[334622993,1723356658848,-500.0,0.00021369,3]
[334622994,1723356658857,-507.5695344,0.00021369,3]
[334622995,1723356658867,-500.0,0.00021369,3]
[334622996,1723356658876,-500.0,0.00021369,3]
[334622997,1723356658887,-500.0,0.00021369,3]
[334622998,1723356658897,-1842.7,0.00021369,3]
[334622999,1723356658910,-1162.59,0.00021369,3]
[334623000,1723356658920,-500.0,0.00021369,3]
[334623001,1723356658930,-869.23,0.00021369,3]
[334623002,1723356658940,-2300.82,0.00021369,3]
[334623003,1723356658954,-647.5,0.00021369,2]
[334623004,1723356658964,-647.5,0.00021369,2]
[334623005,1723356658976,-514.63,0.00021369,3]
[334623006,1723356658985,-3132.41,0.00021369,3]
[334623007,1723356658997,-500.0,0.00021369,3]
[334623008,1723356659006,-500.0,0.00021369,3]
[334623009,1723356659017,-500.0,0.00021369,3]
[334623010,1723356659027,-500.0,0.00021369,3]
[334623011,1723356659036,-500.0,0.00021369,3]
[334623012,1723356659046,-2160.97,0.00021369,3]
[334623013,1723356659057,-500.0,0.00021369,3]
[334623014,1723356659066,-500.0,0.00021369,3]
[334623015,1723356659077,-1800.52,0.00021369,3]
[334623016,1723356659087,-729.4,0.00021369,3]
[334623017,1723356659097,-2209.57,0.00021369,3]
[334623018,1723356659107,-1994.59,0.00021369,3]
[334623019,1723356659117,-192.984059,0.00021369,2]
[334623020,1723356659127,-500.0,0.00021369,3]
[334623021,1723356659136,-1134.46,0.00021369,3]
[334623022,1723356659146,-192.984053,0.00021369,2]
[334623023,1723356659156,-500.0,0.00021369,3]
[334623024,1723356659167,-500.0,0.00021369,3]
[334623025,1723356659176,-500.0,0.00021369,3]
[334623026,1723356659186,-500.0,0.00021369,3]
[334623027,1723356659195,-500.0,0.00021369,3]
[334623028,1723356659204,-602.41,0.00021369,3]
[334623029,1723356659213,-2160.65,0.00021369,3]
[334623030,1723356659222,-419.421935,0.00021369,2]
[334623031,1723356659231,-419.421935,0.00021369,2]
[334623032,1723356659241,-419.421935,0.00021369,2]
[334623033,1723356659250,-745.98,0.00021369,3]
[334623034,1723356659259,-419.421943,0.00021369,2]
[334623035,1723356659268,-259.84395865,0.00021369,3]
[334623036,1723356659390,-306.43049099,0.00015746,2]
[334623037,1723356659401,-257.60604135,0.00021369,3]
[334623038,1723356659411,-500.0,0.00021369,3]
[334623039,1723356659420,-9184.09175481,0.00021369,3]
[334623040,1723356659710,-522.80309354,0.00015712,2]
[334623041,1723356659719,-156.73959383,0.00015712,2]
[334623042,1723356659729,-183.26546668,0.00015744,2]
[334623043,1723356659739,-194.74416001,0.00015751,2]
[334623044,1723356659749,-141.03485432,0.00021369,3]
[334623045,1723356659807,543.53411254,9.999e-05,2]
[334623046,1723356689481,273.37336231,9.9e-05,2]
[334623047,1723356697964,185.0,0.00010959,2]
[334623049,1723356704976,273.37336231,9.9e-05,2]
[334623050,1723356708462,183.26546668,0.0001212,2]
[334623051,1723356708509,154.17,0.00010959,2]
[334623052,1723356712017,522.80309354,0.0001212,2]
[334623053,1723356719059,770.86,0.00010959,2]
[334623054,1723356720131,273.37336231,9.9e-05,2]
[334623055,1723356720955,728.15079492,0.0001212,2]
[334623056,1723356724547,413.29975831,0.0001212,2]
[334623057,1723356732514,166.123109,0.00014247,2]
[334623059,1723356735400,273.37336231,9.9e-05,2]
[334623063,1723356743960,183.26546668,0.0001212,2]
[334623064,1723356747179,2833.28421105,9.999e-05,2]
[334623065,1723356751779,273.37336231,9.9e-05,2]
[334623067,1723356768496,273.37336231,9.9e-05,2]
[334623069,1723356770295,414.16414531,9.999e-05,2]
[334623070,1723356772741,413.29975831,0.00012,2]
[334623071,1723356776462,183.26546668,0.00012,2]
[334623072,1723356782696,3432.67157867,9.9e-05,2]
[334623075,1723356807255,288.02845211,0.0001,2]
[334623076,1723356819561,413.29975831,0.00012,2]
[334623078,1723356853472,218.74631025,0.00012,2]
[334623079,1723356869095,250.53341872,9.999e-05,2]
[334623080,1723356874296,156.96173825,9.999e-05,2]
[334623081,1723356895548,413.29975831,0.00014545,2]
[334623083,1723356911296,250.38146921,0.00014545,2]
[334623084,1723356917805,156.96173825,0.00014545,2]
[334623091,1723356934190,158.59398205,0.00014545,2]
[334623092,1723356938782,154.76012181,9.999e-05,2]
[334623093,1723356986281,154.76012181,0.0001212,2]
[334623094,1723356992677,158.59398205,0.0001212,2]
[334623095,1723357012562,432.63651286,0.0001212,2]
[334623098,1723357036359,309.50474369,0.00014691,2]
[334623099,1723357038690,158.59398205,0.0001212,2]
[334623100,1723357075862,319.99782942,9.999e-05,2]
[334623101,1723357099662,325.10281267,0.00014691,2]
[334623102,1723357103701,158.59398205,0.00014691,2]
[334623104,1723357122272,164.876433,0.00014788,2]
[334623107,1723357212766,164.669354,0.00014247,2]
[334623111,1723357311211,250.0,0.00014752,2]
[334623112,1723357311455,250.0,0.00014792,2]
[334623113,1723357311673,250.0,0.00014832,2]
[334623114,1723357311896,250.0,0.00014873,2]
[334623115,1723357312279,250.0,0.00014913,2]
[334623116,1723357312343,250.0,0.00014954,2]
[334623117,1723357312532,250.0,0.00014994,2]
[334623118,1723357362045,3000.0,0.00014431,2]
[334623119,1723357420278,273.37336231,9.9e-05,2]
[334623120,1723357451896,273.37336231,9.9e-05,2]
[334623121,1723357468197,273.37336231,9.9e-05,2]
[334623122,1723357481990,158.59398205,9.9e-05,2]
[334623123,1723357485148,273.37336231,9.9e-05,2]
[334623124,1723357500599,273.37336231,9.9e-05,2]
[334623126,1723357515935,273.37336231,9.9e-05,2]
[334623127,1723357521708,158.59398205,0.00012,2]
[334623128,1723357531511,273.37336231,9.9e-05,2]
[334623129,1723357540180,223.26161126,0.00012,2]
[334623130,1723357547481,273.37336231,9.9e-05,2]
[334623132,1723357562953,273.37336231,9.9e-05,2]
[334623133,1723357566713,157.82048772,0.00012,2]
[334623138,1723357578337,273.37336231,9.9e-05,2]
[334623139,1723357593426,356.48865902,0.00014545,2]
[334623140,1723357594544,273.37336231,9.9e-05,2]
[334623141,1723357594606,810.1149959,0.00014545,2]
[334623142,1723357597028,155.07603855,0.00014545,2]
[334623143,1723357598344,761.76155898,0.00015,2]
[334623144,1723357609702,273.37336231,9.9e-05,2]
[334623145,1723357611892,24900.0,0.00014352,2]
[334623146,1723357622404,407.43680652,0.00014545,2]
[334623147,1723357625147,273.37336231,9.9e-05,2]
[334623148,1723357625310,-250.0,0.00015035,2]
[334623149,1723357625333,-250.0,0.00015075,2]
[334623150,1723357625355,-250.0,0.00015116,2]
[334623151,1723357625377,-250.0,0.00015156,2]
[334623152,1723357625401,-250.0,0.00015197,2]
[334623153,1723357625425,-250.0,0.00015237,2]
[334623154,1723357625449,-250.0,0.00015278,2]
[334623155,1723357625471,-250.0,0.00015318,2]
[334623156,1723357625494,-250.0,0.00015358,2]
[334623157,1723357625517,-250.0,0.00015399,2]
[334623158,1723357625541,-250.0,0.00015439,2]
[334623159,1723357625565,-250.0,0.0001548,2]
[334623160,1723357625591,-250.0,0.0001552,2]
[334623161,1723357625615,-4692.78843266,0.00015611,2]
[334623162,1723357625638,-300.0,0.00015707,2]
[334623163,1723357625662,-300.0,0.00015707,2]
[334623164,1723357625683,-1264.20020574,0.00015708,2]
[334623165,1723357633936,779.56253199,0.00014545,2]
[334623166,1723357641050,273.37336231,9.9e-05,2]
[334623167,1723357641390,205.28735846,0.00014545,2]
[334623169,1723357657724,273.37336231,9.9e-05,2]
[334623170,1723357673139,273.37336231,9.9e-05,2]
[334623171,1723357688979,273.37336231,9.9e-05,2]
[334623173,1723357703117,543.3913977,0.00012,2]
[334623175,1723357705351,273.37336231,9.9e-05,2]
[334623176,1723357718750,167.262576,0.00014247,2]
[334623177,1723357722040,273.37336231,9.9e-05,2]
[334623178,1723357724949,156.85998551,0.000212,30]
[334623181,1723357737752,273.37336231,9.9e-05,2]
[334623182,1723357753622,273.37336231,9.9e-05,2]
[334623183,1723357769667,273.37336231,9.9e-05,2]
[334623184,1723357778871,451.388236,0.00014701,2]
[334623185,1723357784783,273.37336231,9.9e-05,2]
[334623186,1723357801077,273.37336231,9.9e-05,2]
[334623187,1723357804481,833.90450018,0.00015,2]
[334623188,1723357817405,273.37336231,9.9e-05,2]
[334623189,1723357829081,182.11697513,0.00012,2]
[334623256,1723357832446,-1707.60441235,0.00015612,2]
[334623258,1723357832456,-300.0,0.00015698,2]
[334623260,1723357832466,-300.0,0.00015698,2]
[334623263,1723357832475,-547.26835073,0.00015699,2]
[334623266,1723357832485,-162.60064966,0.00015699,2]
[334623269,1723357832496,-500.0,0.00015699,2]
[334623272,1723357832506,-500.0,0.00015699,2]
[334623275,1723357832516,-500.0,0.00015699,2]
[334623278,1723357832525,-500.0,0.00015699,2]
[334623282,1723357832534,-500.0,0.00015699,2]
[334623285,1723357832544,-500.0,0.00015699,2]
[334623288,1723357832555,-500.0,0.00015699,2]
[334623292,1723357832565,-500.0,0.00015699,2]
[334623295,1723357832576,-500.0,0.00015699,2]
[334623298,1723357832586,-500.0,0.00015699,2]
[334623300,1723357832597,-397.04252595,0.00015699,2]
[334623302,1723357832607,-500.0,0.00015699,2]
[334623304,1723357832617,-500.0,0.00015699,2]
[334623308,1723357832628,-500.0,0.00015699,2]
[334623312,1723357832641,-500.0,0.00015699,2]
[334623314,1723357832651,-500.0,0.00015699,2]
[334623316,1723357832660,-499.99999999,0.00015699,2]
[334623318,1723357832670,-108143.80243,0.000157,2]
[334623320,1723357832679,-584.77130188,0.00015701,2]
[334623322,1723357832690,-242.76165963,0.00015701,2]
[334623324,1723357832700,-500.0,0.00015701,2]
[334623326,1723357832711,-500.0,0.00015701,2]
[334623328,1723357832721,-500.0,0.00015701,2]
[334623329,1723357832730,-500.0,0.00015701,2]
[334623332,1723357832742,-500.0,0.00015701,2]
[334623333,1723357832753,-500.0,0.00015701,2]
[334623335,1723357832764,-500.0,0.00015701,2]
[334623337,1723357832774,-500.0,0.00015701,2]
[334623339,1723357832785,-500.0,0.00015701,2]
[334623341,1723357832794,-500.0,0.00015701,2]
[334623343,1723357832803,-500.0,0.00015701,2]
[334623345,1723357832814,-544.61398626,0.00015701,2]
[334623347,1723357832823,-544.61398626,0.00015701,2]
[334623349,1723357832834,-544.61398626,0.00015701,2]
[334623351,1723357832843,-544.61398626,0.00015701,2]
[334623354,1723357832854,-544.61398626,0.00015701,2]
[334623356,1723357832869,-544.61398626,0.00015701,2]
[334623358,1723357832880,-544.61398626,0.00015701,2]
[334623360,1723357832889,-544.61398626,0.00015701,2]
[334623362,1723357832901,-551.42166108,0.00015701,2]
[334623364,1723357832912,-551.42166108,0.00015701,2]
[334623366,1723357832922,-551.42166108,0.00015701,2]
[334623368,1723357832932,-551.42166108,0.00015701,2]
[334623370,1723357832940,-551.42166108,0.00015701,2]
[334623372,1723357832950,-551.42166108,0.00015701,2]
[334623374,1723357832961,-551.42166108,0.00015701,2]
[334623376,1723357832972,-815.52361457,0.00015701,2]
[334623378,1723357832983,-108143.80243,0.00015702,2]
[334623381,1723357832994,-235.79979426,0.00015708,2]
[334623383,1723357833004,-7007.90701187,0.00015708,2]
[334623385,1723357833014,-1163.86062826,0.00015708,2]
[334623387,1723357833023,-3090.31067256,0.00015708,2]
[334623389,1723357833032,-14251.4449406,0.00015708,2]
[334623391,1723357833043,-1764.03588975,0.00015708,2]
[334623393,1723357833053,-1716.44665799,0.00015708,2]
[334623395,1723357833063,-2280.2888261,0.00015708,3]
[334623397,1723357833073,-1384.13048712,0.00015708,2]
[334623399,1723357833083,-8836.92013464,0.00015708,2]
[334623401,1723357833093,-1092.45305445,0.00015708,2]
[334623403,1723357833102,-932.99527997,0.00015708,2]
[334623405,1723357833113,-686.08883888,0.00015708,2]
[334623407,1723357833123,-510.49820158,0.00015708,2]
[334623409,1723357833133,-157.09694805,0.00015708,2]
[334623411,1723357833144,-46079.14590705,0.00015709,2]
[334623413,1723357833154,-42377.77535747,0.00015709,2]
[334623416,1723357833165,-180.63105164,0.0001571,2]
[334623418,1723357833175,-2609.38502296,0.0001571,2]
[334623420,1723357833186,-728.15079492,0.0001571,2]
[334623422,1723357833196,-154.81863612,0.0001571,2]
[334623424,1723357833206,-1116.33831379,0.0001571,2]
[334623426,1723357833216,-728.15079492,0.0001571,2]
[334623428,1723357833225,-154.76012181,0.00015712,2]
[334623430,1723357833236,-1108.60993125,0.00015712,2]
[334623432,1723357833246,-155.1988676,0.00015712,2]
[334623434,1723357833256,-210.04889723,0.00015712,2]
[334623436,1723357833265,-850.13586547,0.00015712,2]
[334623438,1723357833274,-210.04889723,0.00015712,2]
[334623440,1723357833285,-293.4226268,0.00015712,2]
[334623442,1723357833295,-203.79789842,0.00015712,2]
[334623444,1723357833305,-694.71379029,0.00015712,2]
[334623446,1723357833319,-404.08727484,0.00015744,2]
[334623448,1723357833329,-309.35258956,0.00015744,2]
[334623450,1723357833339,-303.40788492,0.00015744,2]
[334623452,1723357833348,-205.20449904,0.00015744,2]
[334623454,1723357833360,-181.30628376,0.00015744,2]
[334623456,1723357833370,-259.31715241,0.00015746,2]
[334623458,1723357833380,-156.87111249,0.00015746,2]
[334623460,1723357833390,-417.46620737,0.00015746,2]
[334623462,1723357833400,-210.45663087,0.00015851,2]
[334623464,1723357833411,-154.76012181,0.00015851,2]
[334623466,1723357833422,-150.112234,0.000159,2]
[334623468,1723357833432,-14484.8872283,0.00015934,2]
[334623471,1723357833445,-93658.9152017,0.00015934,2]
[334623473,1723357833455,-154.76012181,0.00015952,2]
[334623475,1723357833465,-494.6780177,0.0001611,2]
[334623477,1723357833475,-217.87133237,0.00016309,2]
[334623479,1723357833486,-500.0,0.00016438,2]
[334623481,1723357833497,-629.80966319,0.00016438,2]
[334623483,1723357833508,-500.0,0.00016438,2]
[334623485,1723357833518,-500.0,0.00016438,2]
[334623487,1723357833529,-500.0,0.00016438,2]
[334623489,1723357833539,-500.0,0.00016438,2]
[334623491,1723357833549,-500.0,0.00016438,2]
[334623493,1723357833559,-277.43269753,0.00016532,2]
[334623495,1723357833570,-1707.60441234,0.00016889,2]
[334623497,1723357833579,-21918.92855336,0.00016989,2]
[334623499,1723357833591,-1004.25000015,0.00016989,2]
[334623509,1723357833691,505.97823788,0.00012,2]
[334623510,1723357833866,273.37336231,9.9e-05,2]
[334623539,1723357834228,189.91186464,9.999e-05,2]
[334623540,1723357835316,1092.45305445,0.00014999,2]
[334623584,1723357838777,-2141.01768748,0.00015708,2]
[334623585,1723357838787,-180.63105164,0.00015708,2]
[334623586,1723357838798,-160.17752587,0.00015712,2]
[334623587,1723357838811,-196.63865106,0.00015712,2]
[334623588,1723357838822,-404.08727484,0.00015712,2]
[334623589,1723357838833,-2126.37973248,0.00015746,2]
[334623590,1723357838843,-21910.71988484,0.00016989,2]
[334623591,1723357838856,-63309.90399165,0.00016989,2]
[334623592,1723357838866,-816.94684465,0.00017,3]
[334623593,1723357838876,-154.76012181,0.00017019,2]
[334623594,1723357838887,-165.0,0.00017169,2]
[334623595,1723357838897,-420.0,0.00017268,2]
[334623596,1723357838907,-532.14086008,0.00017389,2]
[334623597,1723357838916,-5240.178669,0.00018,2]
[334623598,1723357838925,-1707.60441234,0.00018167,2]
[334623599,1723357838934,-63288.04698434,0.000189,2]
[334623600,1723357838944,-283.393123,0.00018904,2]
[334623601,1723357838953,-674.04074108,0.00018989,2]
[334623602,1723357838964,-587.0,0.00018995,2]
[334623603,1723357838973,-9430.85260519,0.00019,2]
[334623604,1723357838983,-250.0,0.00019041,2]
[334623605,1723357838992,-186.3613724,0.000191,2]
[334623606,1723357839002,-153.02665387,0.00019178,2]